[Event "48th Continental Open"]
[Site "Sturbridge, MA"]
[Date "2018.08.17"]
[Round "4.23"]
[White "Procyk, Marijan"]
[Black "Riddell, Connor"]
[Result "1-0"]
[ECO "A56"]
[WhiteElo "1940"]
[BlackElo "1716"]
[PlyCount "77"]
[EventDate "2018.08.??"]
[EventType "swiss"]
[EventRounds "9"]
[EventCountry "USA"]
[TimeControl "6000+10"]
[WhiteClock "0:43:51"]
[BlackClock "0:00:30"]

1. d4 {[%emt 0:00:10]} Nf6 {[%emt 0:00:22]} 2. c4 {[%emt 0:00:12]} c5 {[%emt 0:
00:11]} 3. d5 {[%emt 0:00:12]} e5 {[%emt 0:00:11]} 4. Nc3 {[%emt 0:00:12]} d6 {
[%emt 0:00:12]} 5. e4 {[%emt 0:00:12]} Be7 {[%emt 0:00:11]} 6. f4 {[%emt 0:00:
11]} exf4 {[%emt 0:00:39]} 7. Bxf4 {[%emt 0:00:25]} Nbd7 {[%emt 0:10:47]} 8.
Nf3 {[%emt 0:00:29]} Nh5 {[%emt 0:00:38]} 9. Be3 {[%emt 0:03:42]} g6 {[%emt 0:
06:43]} 10. Qd2 {[%emt 0:00:59]} O-O {[%emt 0:02:21]} 11. Bd3 {[%emt 0:01:09]}
Bf6 {[%emt 0:09:15]} 12. g4 {[%emt 0:04:05]} Ng7 {[%emt 0:05:05]} 13. O-O-O {
[%emt 0:02:28]} Ne5 {[%emt 0:00:45]} 14. Nxe5 {[%emt 0:00:47]} Bxe5 {[%emt 0:
00:12]} 15. h3 {[%emt 0:00:46]} a6 {[%emt 0:01:29]} 16. Rdf1 {[%emt 0:03:27]}
b5 {[%emt 0:03:29]} 17. Nd1 {[%emt 0:06:36]} Bd7 {[%emt 0:04:08]} 18. Qe2 {
[%emt 0:03:46]} Qa5 {[%emt 0:00:50]} 19. Kb1 {[%emt 0:00:38]} bxc4 {[%emt 0:01:
08]} 20. Bxc4 {[%emt 0:00:24]} Rab8 {[%emt 0:01:39]} 21. Bd2 {[%emt 0:01:00]}
Qb6 {[%emt 0:07:20]} 22. Bc3 {[%emt 0:00:27]} Bxc3 {[%emt 0:05:42]} 23. Nxc3 {
[%emt 0:00:17]} Bb5 {[%emt 0:00:26]} 24. Rh2 {[%emt 0:01:15]} Rb7 {[%emt 0:02:
00]} 25. h4 {[%emt 0:10:02]} Qa5 {[%emt 0:02:34]} 26. Ka1 {[%emt 0:02:39]} Re8
{[%emt 0:02:29]} 27. h5 {[%emt 0:00:48]} Bxc4 {[%emt 0:02:33]} 28. Qxc4 {
[%emt 0:00:25]} Rb4 {[%emt 0:00:58]} 29. Qd3 {[%emt 0:00:40]} Re7 {[%emt 0:18:
24]} 30. hxg6 {[%emt 0:01:44]} fxg6 {[%emt 0:00:14]} 31. Qh3 {[%emt 0:03:12]}
h5 {[%emt 0:01:07]} 32. gxh5 {[%emt 0:00:43]} gxh5 {[%emt 0:02:34]} 33. Rg2 {
[%emt 0:03:36]} Kh7 {[%emt 0:05:55]} 34. Qg3 {[%emt 0:00:38]} Qd8 {[%emt 0:00:
46]} 35. Qg6+ {[%emt 0:01:27]} Kg8 {[%emt 0:01:27]} 36. Qxh5 {[%emt 0:00:51]}
Qe8 {[%emt 0:01:20]} 37. Rxg7+ {[%emt 0:01:26]} Kxg7 {[%emt 0:00:08]} 38. Rg1+
{[%emt 0:00:18]} Kf6 {[%emt 0:00:00]} 39. Qg5+ {[%emt 0:00:21]} 1-0

[Event "48th Continental Open"]
[Site "Sturbridge, MA"]
[Date "2018.08.18"]
[Round "5.1"]
[White "Gorovets, Andrey"]
[Black "Barbosa, Oliver"]
[Result "1/2-1/2"]
[ECO "D10"]
[WhiteElo "2495"]
[BlackElo "2545"]
[PlyCount "59"]
[EventDate "2018.08.??"]
[EventType "swiss"]
[EventRounds "9"]
[EventCountry "USA"]
[TimeControl "6000+10"]
[WhiteClock "0:21:51"]
[BlackClock "0:11:15"]

1. d4 {[%emt 0:00:10]} d5 {[%emt 0:02:06]} 2. c4 {[%emt 0:00:10]} c6 {[%emt 0:
00:10]} 3. cxd5 {[%emt 0:00:13]} cxd5 {[%emt 0:00:10]} 4. Nc3 {[%emt 0:00:10]}
Nf6 {[%emt 0:00:10]} 5. Bf4 {[%emt 0:00:10]} Nc6 {[%emt 0:00:10]} 6. e3 {
[%emt 0:00:10]} Bf5 {[%emt 0:01:06]} 7. Qb3 {[%emt 0:02:21]} Na5 {[%emt 0:00:
21]} 8. Qa4+ {[%emt 0:00:10]} Bd7 {[%emt 0:01:07]} 9. Qc2 {[%emt 0:00:14]} e6 {
[%emt 0:00:16]} 10. Bd3 {[%emt 0:01:02]} Rc8 {[%emt 0:00:32]} 11. Nf3 {[%emt 0:
00:47]} Be7 {[%emt 0:00:56]} 12. O-O {[%emt 0:02:35]} O-O {[%emt 0:01:38]} 13.
Ne5 {[%emt 0:01:45]} Nc4 {[%emt 0:07:38]} 14. Qe2 {[%emt 0:02:10]} Nd6 {
[%emt 0:02:35]} 15. Rac1 {[%emt 0:05:15]} Be8 {[%emt 0:09:09]} 16. Qf3 {
[%emt 0:06:05]} b5 {[%emt 0:04:49]} 17. Qh3 {[%emt 0:05:29]} h6 {[%emt 0:11:23]
} 18. Ng4 {[%emt 0:29:35]} Nxg4 {[%emt 0:07:16]} 19. Qxg4 {[%emt 0:00:10]} f5 {
[%emt 0:04:20]} 20. Qe2 {[%emt 0:03:11]} a6 {[%emt 0:09:20]} 21. a4 {[%emt 0:
06:28]} bxa4 {[%emt 0:00:32]} 22. Ra1 {[%emt 0:01:03]} a5 {[%emt 0:10:40]} 23.
Nxa4 {[%emt 0:00:57]} Bxa4 {[%emt 0:08:25]} 24. Rxa4 {[%emt 0:00:28]} Ne4 {
[%emt 0:04:07]} 25. f3 {[%emt 0:03:03]} Nf6 {[%emt 0:00:26]} 26. Ba6 {[%emt 0:
04:11]} Rc6 {[%emt 0:00:10]} 27. Bb5 {[%emt 0:00:56]} Rc8 {[%emt 0:00:10]} 28.
Raa1 {[%emt 0:00:22]} Qb6 {[%emt 0:01:00]} 29. Rfc1 {[%emt 0:00:43]} Bd6 {
[%emt 0:03:03]} 30. Bxd6 {[%emt 0:03:06]} 1/2-1/2

[Event "48th Continental Open"]
[Site "Sturbridge, MA"]
[Date "2018.08.18"]
[Round "5.3"]
[White "Kumar, Aravind"]
[Black "Baryshpolets, Andrey"]
[Result "0-1"]
[ECO "D45"]
[WhiteElo "2169"]
[BlackElo "2609"]
[PlyCount "66"]
[EventDate "2018.08.??"]
[EventType "swiss"]
[EventRounds "9"]
[EventCountry "USA"]
[TimeControl "6000+10"]
[WhiteClock "0:00:03"]
[BlackClock "0:15:11"]

1. d4 d5 {[%emt 0:05:36]} 2. c4 {[%emt 0:00:51]} e6 {[%emt 0:00:10]} 3. Nc3 {
[%emt 0:00:10]} c6 {[%emt 0:01:05]} 4. e3 {[%emt 0:01:28]} Nf6 {[%emt 0:00:10]}
5. Nf3 {[%emt 0:00:14]} Nbd7 {[%emt 0:00:10]} 6. Qc2 {[%emt 0:00:39]} Bd6 {
[%emt 0:00:10]} 7. Bd3 {[%emt 0:00:10]} O-O {[%emt 0:00:52]} 8. O-O {[%emt 0:
00:10]} dxc4 {[%emt 0:00:10]} 9. Bxc4 {[%emt 0:00:10]} e5 {[%emt 0:02:05]} 10.
Rd1 {[%emt 0:18:32]} Qe7 {[%emt 0:02:21]} 11. h3 {[%emt 0:06:12]} e4 {[%emt 0:
07:06]} 12. Nd2 {[%emt 0:24:17]} Nb6 {[%emt 0:08:52]} 13. Bf1 {[%emt 0:03:34]}
Re8 {[%emt 0:04:51]} 14. g4 {[%emt 0:07:06]} h5 {[%emt 0:18:34]} 15. g5 {
[%emt 0:01:58]} Nh7 {[%emt 0:00:43]} 16. Qxe4 {[%emt 0:20:08]} Qxg5+ {[%emt 0:
09:42]} 17. Qg2 {[%emt 0:00:10]} Bxh3 {[%emt 0:00:34]} 18. Qxg5 {[%emt 0:02:37]
} Nxg5 {[%emt 0:00:10]} 19. f4 {[%emt 0:00:10]} Bxf1 {[%emt 0:02:24]} 20. Rxf1
{[%emt 0:00:10]} Ne6 {[%emt 0:02:18]} 21. f5 {[%emt 0:05:32]} Ng5 {[%emt 0:01:
58]} 22. e4 {[%emt 0:01:42]} f6 {[%emt 0:03:32]} 23. e5 {[%emt 0:03:58]} fxe5 {
[%emt 0:03:19]} 24. Nde4 {[%emt 0:00:10]} Nxe4 {[%emt 0:01:10]} 25. Nxe4 {
[%emt 0:00:10]} Bc7 {[%emt 0:00:28]} 26. f6 {[%emt 0:02:49]} Rf8 {[%emt 0:00:
25]} 27. dxe5 {[%emt 0:01:15]} Bxe5 {[%emt 0:01:36]} 28. Rf5 {[%emt 0:00:15]}
Rae8 {[%emt 0:01:54]} 29. Bg5 {[%emt 0:00:10]} Bd4+ {[%emt 0:04:06]} 30. Nf2 {
[%emt 0:00:10]} Nd5 {[%emt 0:01:05]} 31. Rd1 {[%emt 0:00:10]} Bxf6 {[%emt 0:01:
47]} 32. Bxf6 {[%emt 0:00:10]} Nxf6 {[%emt 0:00:32]} 33. Kg2 {[%emt 0:00:10]}
Re2 {[%emt 0:00:34]} 0-1

[Event "48th Continental Open"]
[Site "Sturbridge, MA"]
[Date "2018.08.18"]
[Round "5.4"]
[White "Vorontsov, Pavlo"]
[Black "Samadashvili, Martha"]
[Result "1-0"]
[ECO "E46"]
[WhiteElo "2578"]
[BlackElo "2136"]
[PlyCount "51"]
[EventDate "2018.08.??"]
[EventType "swiss"]
[EventRounds "9"]
[EventCountry "USA"]
[TimeControl "6000+10"]
[WhiteClock "0:50:52"]
[BlackClock "0:17:10"]

1. d4 {[%emt 0:08:26]} Nf6 {[%emt 0:00:20]} 2. c4 {[%emt 0:00:10]} e6 {[%emt 0:
00:10]} 3. Nc3 {[%emt 0:00:10]} Bb4 {[%emt 0:00:12]} 4. e3 {[%emt 0:00:53]} O-O
{[%emt 0:00:21]} 5. Nge2 {[%emt 0:00:40]} d5 {[%emt 0:02:37]} 6. a3 {[%emt 0:
00:10]} Be7 {[%emt 0:01:10]} 7. cxd5 {[%emt 0:01:23]} exd5 {[%emt 0:00:10]} 8.
g3 {[%emt 0:00:10]} c6 {[%emt 0:01:35]} 9. Bg2 {[%emt 0:00:10]} Bf5 {[%emt 0:
00:37]} 10. f3 {[%emt 0:00:58]} Re8 {[%emt 0:09:31]} 11. g4 {[%emt 0:02:58]}
Bg6 {[%emt 0:03:53]} 12. Nf4 {[%emt 0:00:22]} Bd6 {[%emt 0:06:42]} 13. O-O {
[%emt 0:00:10]} Qc7 {[%emt 0:01:16]} 14. h4 {[%emt 0:06:34]} h6 {[%emt 0:06:36]
} 15. Nxg6 {[%emt 0:06:14]} fxg6 {[%emt 0:00:10]} 16. f4 {[%emt 0:03:33]} Ne4 {
[%emt 0:23:17]} 17. Nxe4 {[%emt 0:01:24]} dxe4 {[%emt 0:00:10]} 18. g5 {
[%emt 0:00:24]} hxg5 {[%emt 0:04:24]} 19. hxg5 {[%emt 0:01:05]} Qd7 {[%emt 0:
03:05]} 20. f5 {[%emt 0:01:38]} Qe7 {[%emt 0:08:19]} 21. Qg4 {[%emt 0:11:29]}
gxf5 {[%emt 0:02:35]} 22. Rxf5 {[%emt 0:00:10]} Nd7 {[%emt 0:04:12]} 23. g6 {
[%emt 0:02:48]} Nf6 {[%emt 0:02:30]} 24. Qh3 {[%emt 0:00:19]} Rac8 {[%emt 0:02:
24]} 25. Bd2 {[%emt 0:00:16]} Rf8 {[%emt 0:00:54]} 26. Rh5 {[%emt 0:00:54]} 1-0

[Event "48th Continental Open"]
[Site "Sturbridge, MA"]
[Date "2018.08.18"]
[Round "5.6"]
[White "Mulyar, Michael"]
[Black "Taylor, Steven"]
[Result "1-0"]
[ECO "D30"]
[WhiteElo "2374"]
[BlackElo "2081"]
[PlyCount "57"]
[EventDate "2018.08.??"]
[EventType "swiss"]
[EventRounds "9"]
[EventCountry "USA"]
[TimeControl "6000+10"]
[WhiteClock "1:00:02"]
[BlackClock "0:00:48"]

1. d4 {[%emt 0:00:10]} d5 {[%emt 0:12:14]} 2. c4 {[%emt 0:00:16]} e6 {[%emt 0:
00:15]} 3. Nf3 {[%emt 0:00:18]} Nf6 {[%emt 0:00:31]} 4. g3 {[%emt 0:00:32]} Be7
{[%emt 0:01:22]} 5. Bg2 {[%emt 0:00:20]} O-O {[%emt 0:00:13]} 6. O-O {[%emt 0:
00:22]} dxc4 {[%emt 0:00:38]} 7. Qc2 {[%emt 0:00:16]} a6 {[%emt 0:00:56]} 8.
Qxc4 {[%emt 0:00:32]} b5 {[%emt 0:01:05]} 9. Qc2 {[%emt 0:00:35]} Bb7 {[%emt 0:
01:49]} 10. Bd2 {[%emt 0:00:16]} Be4 {[%emt 0:02:48]} 11. Qc1 {[%emt 0:00:31]}
Bd6 {[%emt 0:01:35]} 12. Bg5 {[%emt 0:03:28]} h6 {[%emt 0:07:40]} 13. Bxf6 {
[%emt 0:00:24]} Qxf6 {[%emt 0:00:13]} 14. Nbd2 {[%emt 0:00:18]} Bh7 {[%emt 0:
09:43]} 15. a4 {[%emt 0:12:16]} b4 {[%emt 0:23:49]} 16. Ne5 {[%emt 0:04:07]}
Ra7 {[%emt 0:07:16]} 17. Ndc4 {[%emt 0:00:22]} a5 {[%emt 0:09:23]} 18. Qe3 {
[%emt 0:01:38]} Qe7 {[%emt 0:06:58]} 19. Rac1 {[%emt 0:02:49]} Ra6 {[%emt 0:14:
43]} 20. b3 {[%emt 0:01:24]} f6 {[%emt 0:00:00]} 21. Nd3 {[%emt 0:00:18]} Bxd3
{[%emt 0:00:00]} 22. Qxd3 {[%emt 0:00:16]} e5 {[%emt 0:00:00]} 23. dxe5 {
[%emt 0:07:39]} fxe5 {[%emt 0:00:00]} 24. Ne3 {[%emt 0:00:25]} Qg5 {[%emt 0:00:
00]} 25. h4 {[%emt 0:01:03]} Qh5 {[%emt 0:00:02]} 26. Bf3 {[%emt 0:01:26]} Qe8
{[%emt 0:00:11]} 27. Rfd1 {[%emt 0:01:40]} c5 {[%emt 0:00:28]} 28. Bb7 {
[%emt 0:00:50]} Rb6 {[%emt 0:00:10]} 29. Nc4 {[%emt 0:00:17]} 1-0

[Event "48th Continental Open"]
[Site "Sturbridge, MA"]
[Date "2018.08.18"]
[Round "5.9"]
[White "Bader, Jeremy"]
[Black "Isakov, Michael"]
[Result "0-1"]
[ECO "B80"]
[WhiteElo "1845"]
[BlackElo "2163"]
[PlyCount "84"]
[EventDate "2018.08.??"]
[EventType "swiss"]
[EventRounds "9"]
[EventCountry "USA"]
[TimeControl "6000+10"]
[WhiteClock "0:00:15"]
[BlackClock "0:00:07"]

1. e4 {[%emt 0:00:10]} c5 2. Nf3 {[%emt 0:00:14]} d6 {[%emt 0:00:34]} 3. d4 {
[%emt 0:00:16]} cxd4 {[%emt 0:00:10]} 4. Nxd4 {[%emt 0:00:15]} Nf6 {[%emt 0:00:
15]} 5. Nc3 {[%emt 0:00:19]} a6 {[%emt 0:00:24]} 6. f3 {[%emt 0:00:35]} e6 {
[%emt 0:00:39]} 7. Be3 {[%emt 0:00:27]} Be7 {[%emt 0:00:42]} 8. Qd2 {[%emt 0:
00:43]} b5 {[%emt 0:02:23]} 9. g4 {[%emt 0:03:07]} Bb7 {[%emt 0:00:48]} 10.
O-O-O {[%emt 0:02:55]} Nfd7 {[%emt 0:05:58]} 11. Kb1 {[%emt 0:01:35]} Nb6 {
[%emt 0:02:16]} 12. Qf2 {[%emt 0:03:33]} N8d7 {[%emt 0:01:09]} 13. h4 {[%emt 0:
03:25]} Rc8 {[%emt 0:07:59]} 14. Nce2 {[%emt 0:04:04]} Nc4 {[%emt 0:06:16]} 15.
Bc1 {[%emt 0:00:50]} Qb6 {[%emt 0:08:46]} 16. Qg2 {[%emt 0:02:58]} O-O {
[%emt 0:11:28]} 17. g5 {[%emt 0:03:00]} d5 {[%emt 0:14:04]} 18. Ng3 {[%emt 0:
07:01]} Rfd8 {[%emt 0:04:05]} 19. h5 {[%emt 0:04:42]} Nde5 {[%emt 0:03:21]} 20.
Bxc4 {[%emt 0:17:22]} Rxc4 {[%emt 0:04:59]} 21. Nb3 {[%emt 0:04:48]} Rdc8 {
[%emt 0:01:34]} 22. Na1 {[%emt 0:03:07]} dxe4 {[%emt 0:04:58]} 23. fxe4 {
[%emt 0:00:39]} Bc5 {[%emt 0:02:21]} 24. b3 {[%emt 0:01:42]} Rd4 {[%emt 0:03:
43]} 25. Bb2 {[%emt 0:00:32]} Ng4 {[%emt 0:01:40]} 26. Qe2 {[%emt 0:05:59]} Nf2
{[%emt 0:01:25]} 27. Rxd4 {[%emt 0:00:55]} Bxd4 {[%emt 0:02:15]} 28. Re1 {
[%emt 0:02:43]} Bxb2 {[%emt 0:01:06]} 29. Kxb2 {[%emt 0:00:10]} Qd4+ {[%emt 0:
00:15]} 30. Kb1 {[%emt 0:00:12]} Rc3 31. Nh1 {[%emt 0:12:38]} Nxe4 {[%emt 0:02:
19]} 32. Rd1 {[%emt 0:00:32]} Qb6 {[%emt 0:00:16]} 33. Kb2 {[%emt 0:02:18]} Rc8
{[%emt 0:01:14]} 34. Rd3 {[%emt 0:02:43]} b4 {[%emt 0:02:14]} 35. Ng3 {[%emt 0:
02:40]} Nc3 {[%emt 0:03:54]} 36. Qe5 {[%emt 0:01:23]} Qg1 {[%emt 0:00:31]} 37.
Rxc3 {[%emt 0:01:08]} bxc3+ {[%emt 0:00:19]} 38. Ka3 {[%emt 0:00:25]} Qxa1 {
[%emt 0:00:00]} 39. h6 {[%emt 0:00:30]} gxh6 {[%emt 0:00:00]} 40. Nh5 {[%emt 0:
03:34]} Qc1+ {[%emt 0:00:00]} 41. Kb4 {[%emt 0:00:07]} Qxg5 {[%emt 0:00:01]}
42. Nf6+ {[%emt 0:00:29]} Kh8 {[%emt 0:00:42]} 0-1

[Event "48th Continental Open"]
[Site "Sturbridge, MA"]
[Date "2018.08.18"]
[Round "5.10"]
[White "Wu, Brandon"]
[Black "Otchiyev, Arslan"]
[Result "0-1"]
[ECO "A15"]
[WhiteElo "1980"]
[BlackElo "2333"]
[PlyCount "160"]
[EventDate "2018.08.??"]
[EventType "swiss"]
[EventRounds "9"]
[EventCountry "USA"]
[TimeControl "6000+10"]
[WhiteClock "0:00:07"]
[BlackClock "1:37:45"]

1. Nf3 {[%emt 0:00:10]} Nf6 {[%emt 0:00:21]} 2. c4 {[%emt 0:01:17]} g6 {
[%emt 0:00:11]} 3. g3 {[%emt 0:00:12]} Bg7 {[%emt 0:00:11]} 4. Bg2 {[%emt 0:00:
22]} O-O {[%emt 0:00:11]} 5. O-O {[%emt 0:00:19]} d6 {[%emt 0:00:11]} 6. d4 {
[%emt 0:00:29]} Nc6 {[%emt 0:00:11]} 7. Nc3 {[%emt 0:00:19]} Rb8 {[%emt 0:00:
11]} 8. h3 {[%emt 0:00:56]} Bf5 {[%emt 0:00:11]} 9. d5 {[%emt 0:14:09]} Na5 {
[%emt 0:00:11]} 10. Nd4 {[%emt 0:05:30]} Bd7 {[%emt 0:00:11]} 11. Qd3 {[%emt 0:
07:13]} c5 {[%emt 0:00:12]} 12. Nc2 {[%emt 0:14:30]} a6 {[%emt 0:00:11]} 13.
Rb1 {[%emt 0:03:37]} b5 {[%emt 0:00:11]} 14. cxb5 {[%emt 0:00:52]} axb5 {
[%emt 0:00:11]} 15. b4 {[%emt 0:04:15]} Nc4 {[%emt 0:00:11]} 16. bxc5 {[%emt 0:
01:23]} dxc5 {[%emt 0:00:10]} 17. Bf4 {[%emt 0:16:04]} Nd6 {[%emt 0:00:12]} 18.
Bxd6 {[%emt 0:10:35]} c4 {[%emt 0:00:11]} 19. Qd2 {[%emt 0:02:57]} exd6 {
[%emt 0:00:11]} 20. Rb4 {[%emt 0:08:07]} Qc8 {[%emt 0:00:11]} 21. Kh2 {[%emt 0:
01:38]} Qc5 {[%emt 0:00:11]} 22. e3 {[%emt 0:06:01]} Ne8 {[%emt 0:00:11]} 23.
a4 {[%emt 0:00:00]} Nc7 {[%emt 0:00:11]} 24. Ne4 {[%emt 0:00:00]} Qb6 {[%emt 0:
00:11]} 25. axb5 {[%emt 0:00:00]} f5 {[%emt 0:00:11]} 26. Nc3 {[%emt 0:03:11]}
Nxb5 {[%emt 0:00:11]} 27. Nxb5 {[%emt 0:00:00]} Bxb5 {[%emt 0:00:11]} 28. Rfb1
{[%emt 0:00:00]} Qa5 {[%emt 0:00:11]} 29. Nd4 {[%emt 0:00:29]} Rfc8 {[%emt 0:
00:11]} 30. Qc1 {[%emt 0:00:00]} Bxd4 {[%emt 0:00:11]} 31. exd4 {[%emt 0:00:00]
} Rb6 {[%emt 0:00:11]} 32. Bf1 {[%emt 0:00:35]} Rcb8 {[%emt 0:00:17]} 33. Bxc4
{[%emt 0:00:11]} Bd7 {[%emt 0:00:11]} 34. Rxb6 {[%emt 0:00:00]} Rxb6 {[%emt 0:
00:11]} 35. Ra1 {[%emt 0:00:00]} Qb4 {[%emt 0:00:10]} 36. Qg5 {[%emt 0:00:06]}
Rb8 {[%emt 0:00:11]} 37. Ra7 {[%emt 0:00:00]} Qxc4 {[%emt 0:00:10]} 38. Rxd7 {
[%emt 0:00:00]} Qxd4 {[%emt 0:00:11]} 39. Qf4 {[%emt 0:01:01]} Qxf4 {[%emt 0:
00:10]} 40. gxf4 {[%emt 0:00:10]} Rb6 {[%emt 0:00:11]} 41. Kg3 {[%emt 0:00:00]}
Ra6 {[%emt 0:00:11]} 42. Kf3 {[%emt 0:00:00]} Ra3+ {[%emt 0:00:11]} 43. Kg2 {
[%emt 0:00:00]} Ra6 {[%emt 0:00:11]} 44. Kf3 {[%emt 0:00:37]} Ra3+ {[%emt 0:00:
11]} 45. Ke2 {[%emt 0:00:00]} Rxh3 {[%emt 0:00:11]} 46. Rxd6 {[%emt 0:00:00]}
Kf7 {[%emt 0:00:10]} 47. Re6 {[%emt 0:00:00]} Ra3 {[%emt 0:00:11]} 48. Re5 {
[%emt 0:00:07]} h5 {[%emt 0:00:11]} 49. d6 {[%emt 0:00:00]} Ra7 {[%emt 0:00:11]
} 50. Rd5 {[%emt 0:00:00]} Rd7 {[%emt 0:00:11]} 51. Rd1 {[%emt 0:00:00]} Ke6 {
[%emt 0:00:11]} 52. Rg1 {[%emt 0:00:07]} Rg7 {[%emt 0:00:11]} 53. Rd1 {[%emt 0:
00:00]} Kd7 {[%emt 0:00:11]} 54. Kf3 {[%emt 0:00:00]} Rf7 {[%emt 0:00:10]} 55.
Ra1 {[%emt 0:00:00]} Rf6 {[%emt 0:00:11]} 56. Ra7+ {[%emt 0:00:00]} Kxd6 {
[%emt 0:00:10]} 57. Ra6+ {[%emt 0:00:01]} Ke7 {[%emt 0:00:10]} 58. Ra7+ {
[%emt 0:00:30]} Kf8 {[%emt 0:00:10]} 59. Kg3 {[%emt 0:00:49]} Rf7 {[%emt 0:00:
10]} 60. Ra8+ {[%emt 0:00:00]} Kg7 {[%emt 0:00:10]} 61. Kh4 {[%emt 0:00:00]}
Kh6 {[%emt 0:00:10]} 62. Rh8+ {[%emt 0:00:00]} Rh7 {[%emt 0:00:10]} 63. Rd8 {
[%emt 0:00:00]} Ra7 {[%emt 0:00:11]} 64. Rh8+ {[%emt 0:00:00]} Kg7 {[%emt 0:00:
10]} 65. Rb8 {[%emt 0:00:00]} Ra1 {[%emt 0:00:11]} 66. Rb3 {[%emt 0:00:08]} Rg1
{[%emt 0:00:31]} 67. Rg3 {[%emt 0:00:00]} Rh1+ {[%emt 0:00:10]} 68. Kg5 {
[%emt 0:00:00]} Rh2 {[%emt 0:00:10]} 69. Rf3 {[%emt 0:00:00]} Kf7 {[%emt 0:00:
10]} 70. Rg3 {[%emt 0:00:00]} Rxf2 {[%emt 0:00:11]} 71. Ra3 {[%emt 0:01:25]}
Rg2+ {[%emt 0:00:10]} 72. Kh6 {[%emt 0:01:30]} h4 {[%emt 0:00:10]} 73. Ra7+ {
[%emt 0:00:08]} Ke6 {[%emt 0:00:10]} 74. Rh7 {[%emt 0:00:11]} h3 {[%emt 0:00:
43]} 75. Kg7 {[%emt 0:00:11]} h2 {[%emt 0:00:10]} 76. Rh4 {[%emt 0:00:01]} Kd5
{[%emt 0:00:10]} 77. Kf7 {[%emt 0:00:23]} Ke4 {[%emt 0:00:10]} 78. Kf6 {
[%emt 0:00:12]} Kf3 {[%emt 0:00:31]} 79. Ke5 {[%emt 0:00:00]} Kf2 {[%emt 0:00:
10]} 80. Kd4 {[%emt 0:00:15]} Kg1 {[%emt 0:00:10]} 0-1

[Event "48th Continental Open"]
[Site "Sturbridge, MA"]
[Date "2018.08.18"]
[Round "5.12"]
[White "Graif, William"]
[Black "Procyk, Marijan"]
[Result "1-0"]
[ECO "B76"]
[WhiteElo "2123"]
[BlackElo "1940"]
[PlyCount "46"]
[EventDate "2018.08.??"]
[EventType "swiss"]
[EventRounds "9"]
[EventCountry "USA"]
[TimeControl "6000+10"]
[WhiteClock "0:22:58"]
[BlackClock "0:43:30"]

1. e4 {[%emt 0:00:10]} c5 {[%emt 0:00:21]} 2. Nf3 {[%emt 0:00:15]} d6 {[%emt 0:
00:17]} 3. d4 {[%emt 0:00:15]} cxd4 {[%emt 0:00:19]} 4. Nxd4 {[%emt 0:00:23]}
Nf6 {[%emt 0:00:18]} 5. Nc3 {[%emt 0:00:14]} g6 {[%emt 0:00:17]} 6. Be3 {
[%emt 0:00:13]} Bg7 {[%emt 0:00:18]} 7. f3 {[%emt 0:00:12]} O-O {[%emt 0:00:39]
} 8. Qd2 {[%emt 0:00:12]} Nc6 {[%emt 0:00:22]} 9. g4 {[%emt 0:04:23]} Bd7 {
[%emt 0:06:59]} 10. O-O-O {[%emt 0:02:38]} Rc8 {[%emt 0:00:41]} 11. Kb1 {
[%emt 0:00:54]} Ne5 {[%emt 0:01:38]} 12. h4 {[%emt 0:01:51]} h5 {[%emt 0:02:31]
} 13. Bh6 {[%emt 0:16:15]} hxg4 {[%emt 0:24:25]} 14. h5 {[%emt 0:36:50]} Bxh6 {
[%emt 0:12:14]} 15. Qxh6 {[%emt 0:00:18]} g5 {[%emt 0:00:16]} 16. Qxg5+ {
[%emt 0:06:44]} Kh7 {[%emt 0:01:00]} 17. Nf5 {[%emt 0:00:11]} Bxf5 {[%emt 0:00:
52]} 18. Qxf5+ {[%emt 0:00:14]} Kh6 {[%emt 0:00:44]} 19. f4 {[%emt 0:04:07]}
Nf3 {[%emt 0:02:42]} 20. e5 {[%emt 0:01:23]} Qa5 {[%emt 0:00:26]} 21. Rxd6 {
[%emt 0:02:35]} exd6 {[%emt 0:00:55]} 22. Qxf6+ {[%emt 0:00:19]} Kh7 {[%emt 0:
01:33]} 23. Bd3+ {[%emt 0:00:16]} Kg8 {[%emt 0:00:43]} 1-0

[Event "48th Continental Open"]
[Site "Sturbridge, MA"]
[Date "2018.08.18"]
[Round "5.14"]
[White "Riddell, John"]
[Black "Genger, Eitan"]
[Result "0-1"]
[ECO "B10"]
[WhiteElo "2103"]
[BlackElo "1903"]
[PlyCount "108"]
[EventDate "2018.08.??"]
[EventType "swiss"]
[EventRounds "9"]
[EventCountry "USA"]
[TimeControl "6000+10"]
[WhiteClock "0:00:10"]
[BlackClock "0:01:23"]

1. e4 {[%emt 0:00:10]} c6 2. c4 {[%emt 0:01:24]} d5 {[%emt 0:01:20]} 3. exd5 {
[%emt 0:00:15]} cxd5 {[%emt 0:00:11]} 4. cxd5 {[%emt 0:00:10]} Qxd5 {[%emt 0:
01:56]} 5. Nc3 {[%emt 0:00:11]} Qa5 {[%emt 0:05:41]} 6. d4 {[%emt 0:01:38]} e6
{[%emt 0:02:30]} 7. Nf3 {[%emt 0:00:27]} Nf6 {[%emt 0:01:02]} 8. Bd3 {[%emt 0:
13:43]} Be7 {[%emt 0:01:47]} 9. O-O {[%emt 0:01:25]} O-O {[%emt 0:01:05]} 10.
Bg5 {[%emt 0:05:53]} Nc6 {[%emt 0:01:38]} 11. a3 {[%emt 0:01:17]} Nd5 {[%emt 0:
13:57]} 12. b4 {[%emt 0:22:46]} Nxc3 {[%emt 0:19:06]} 13. Qc2 {[%emt 0:10:02]}
Nxd4 {[%emt 0:16:41]} 14. bxa5 {[%emt 0:20:57]} Nxc2 {[%emt 0:00:20]} 15. Bxe7
{[%emt 0:00:16]} Nxa1 {[%emt 0:03:29]} 16. Bxf8 {[%emt 0:00:28]} Kxf8 {[%emt 0:
00:46]} 17. Rxa1 {[%emt 0:00:13]} Bd7 {[%emt 0:03:39]} 18. Ne5 {[%emt 0:00:32]}
Ke7 {[%emt 0:01:50]} 19. f4 {[%emt 0:05:12]} g6 {[%emt 0:01:30]} 20. g4 {
[%emt 0:00:24]} f6 {[%emt 0:01:08]} 21. Nf3 {[%emt 0:02:54]} Bc6 {[%emt 0:02:
03]} 22. Nd4 {[%emt 0:01:00]} Rd8 {[%emt 0:00:55]} 23. Nxc6+ {[%emt 0:00:35]}
bxc6 {[%emt 0:00:10]} 24. Bf1 {[%emt 0:00:28]} Rd5 {[%emt 0:03:25]} 25. Rc1 {
[%emt 0:02:01]} Rc5 {[%emt 0:00:10]} 26. Rc2 {[%emt 0:01:52]} Na4 {[%emt 0:00:
10]} 27. Bc4 {[%emt 0:00:54]} Rxa5 {[%emt 0:01:57]} 28. Re2 {[%emt 0:02:25]} e5
{[%emt 0:00:55]} 29. g5 {[%emt 0:05:13]} fxg5 {[%emt 0:00:10]} 30. fxg5 {
[%emt 0:00:12]} Nc3 {[%emt 0:03:43]} 31. Rf2 {[%emt 0:00:00]} Nd5 {[%emt 0:00:
28]} 32. Rb2 {[%emt 0:00:22]} Kd6 {[%emt 0:01:04]} 33. Rb7 {[%emt 0:00:00]} Ra4
{[%emt 0:02:05]} 34. Bxd5 {[%emt 0:00:00]} cxd5 {[%emt 0:00:10]} 35. Rxh7 {
[%emt 0:00:00]} Ke6 {[%emt 0:02:43]} 36. h4 {[%emt 0:00:00]} Kf5 {[%emt 0:01:
10]} 37. Rf7+ {[%emt 0:00:00]} Kg4 {[%emt 0:00:23]} 38. Rf6 {[%emt 0:00:00]}
Kxh4 {[%emt 0:00:42]} 39. Rxg6 {[%emt 0:00:07]} Rg4+ {[%emt 0:00:11]} 40. Kf2 {
[%emt 0:00:48]} Rxg5 {[%emt 0:00:11]} 41. Rh6+ {[%emt 0:00:11]} Kg4 {[%emt 0:
00:19]} 42. Rh7 {[%emt 0:00:16]} d4 {[%emt 0:01:27]} 43. Rxa7 {[%emt 0:00:11]}
Rf5+ {[%emt 0:00:19]} 44. Ke2 {[%emt 0:00:00]} Kf4 {[%emt 0:00:10]} 45. Rd7 {
[%emt 0:00:00]} Rh5 {[%emt 0:00:30]} 46. a4 {[%emt 0:00:08]} Ke4 {[%emt 0:00:
10]} 47. Rb7 {[%emt 0:00:17]} Rh2+ {[%emt 0:00:14]} 48. Kd1 {[%emt 0:00:15]}
Ke3 {[%emt 0:00:26]} 49. Re7 {[%emt 0:00:36]} Kd3 {[%emt 0:00:10]} 50. Ke1 {
[%emt 0:00:09]} Rh1+ {[%emt 0:00:11]} 51. Kf2 {[%emt 0:00:10]} e4 {[%emt 0:00:
37]} 52. a5 {[%emt 0:00:11]} Ra1 {[%emt 0:00:11]} 53. Re5 {[%emt 0:00:11]} e3+
{[%emt 0:00:20]} 54. Kg2 {[%emt 0:00:01]} Kd2 {[%emt 0:00:22]} 0-1